bitfinex-derivatives/quotes_BTCF0:USTF0_20250812
["timestamp","ask_amount","ask_price","bid_price","bid_amount"]
[1754974648675,2.00853784,119220.0,119210.0,0.2061577]
[1754974653481,2.00853784,119220.0,119210.0,0.0868877]
[1754974654076,2.00853784,119220.0,119210.0,0.1099477]
[1754974654778,2.00853784,119220.0,119210.0,0.0868877]
[1754974656081,2.00853784,119220.0,119210.0,0.1099477]
[1754974658285,2.51023141,119220.0,119210.0,0.1099477]
[1754974659175,2.51023141,119220.0,119210.0,0.0868877]
[1754974659381,1.74807141,119220.0,119210.0,0.003]
[1754974659577,2.51011141,119220.0,119210.0,0.003]
[1754974659782,0.0838877,119210.0,119200.0,0.0838911]
[1754974659982,1.11913734,119210.0,119200.0,0.1069511]
[1754974660484,1.11913734,119210.0,119200.0,0.02306]
[1754974660879,1.12113734,119210.0,119200.0,0.02306]
[1754974661187,0.0838948,119200.0,119190.0,0.3586527]
[1754974661381,1.86388194,119200.0,119190.0,0.2747627]
[1754974663588,1.86488194,119200.0,119190.0,0.2747627]
[1754974663991,1.86688194,119200.0,119190.0,0.3562527]
[1754974664181,1.86688194,119200.0,119190.0,0.3699627]
[1754974665885,0.8634948,119200.0,119190.0,0.3699627]
[1754974666092,1.36518837,119200.0,119190.0,0.87165627]
[1754974666286,1.86688194,119200.0,119190.0,0.3699627]
[1754974669494,1.86688194,119200.0,119190.0,0.2759327]
[1754974669787,1.86688194,119200.0,119190.0,0.1081309]
[1754974669992,2.36857551,119200.0,119190.0,0.1081309]
[1754974670394,2.37680697,119200.0,119190.0,0.1081309]
[1754974670592,1.8751134,119200.0,119190.0,0.1081309]
[1754974671588,2.37680697,119200.0,119190.0,0.0839009]
[1754974671794,2.37680697,119200.0,119190.0,0.1081309]
[1754974672390,1.8751134,119200.0,119190.0,0.1081309]
[1754974674692,2.37680697,119200.0,119190.0,0.1081309]
[1754974678890,2.37680697,119200.0,119190.0,0.02423]
[1754974679195,0.0839018,119190.0,119180.0,0.3598456]
[1754974679496,1.10188894,119190.0,119180.0,0.3709006]
[1754974680893,1.10488894,119190.0,119180.0,0.3709006]
[1754974681097,1.10988894,119190.0,119180.0,0.3709006]
[1754974681396,1.5839089,119180.0,119170.0,0.3356593]
[1754974681595,3.35855604,119180.0,119170.0,0.4306093]
[1754974681794,3.35855604,119180.0,119170.0,0.3709235]
[1754974681995,3.35855604,119180.0,119170.0,0.3245535]
[1754974682194,3.35855604,119180.0,119170.0,0.3709235]
[1754974682592,3.35855604,119180.0,119170.0,0.3565735]
[1754974682792,2.3551689,119180.0,119170.0,0.3565735]
[1754974682993,3.35855604,119180.0,119170.0,0.3565735]
[1754974683193,3.35855604,119180.0,119170.0,0.3709235]
[1754974683601,3.35855604,119180.0,119170.0,0.2870077]
[1754974683894,3.36155604,119180.0,119170.0,0.2870077]
[1754974684089,3.86324961,119180.0,119170.0,0.1920577]
[1754974684289,3.36155604,119180.0,119170.0,0.1920577]
[1754974684495,3.36655604,119180.0,119170.0,0.2240777]
[1754974685899,3.36655604,119180.0,119170.0,0.1920577]
[1754974686789,3.43432579,119180.0,119170.0,0.1920577]
[1754974691101,3.43432579,119180.0,119170.0,0.04082]
[1754974691303,3.43432579,119180.0,119170.0,0.11918]
[1754974691502,1.93432579,119180.0,119170.0,0.11918]
[1754974692608,0.93093865,119180.0,119170.0,0.11918]
[1754974692812,1.94330579,119180.0,119170.0,0.11918]
[1754974693508,2.08260579,119180.0,119170.0,0.11918]
[1754974695705,1.07921865,119180.0,119170.0,0.11918]
[1754974695909,2.08260579,119180.0,119170.0,0.11918]
[1754974696111,2.08260579,119180.0,119170.0,0.2030959]
[1754974696300,2.08260579,119180.0,119170.0,0.1567259]
[1754974696507,2.08220579,119180.0,119170.0,0.2030959]
[1754974702217,2.08220579,119180.0,119170.0,0.22168971]
[1754974708221,2.08220579,119180.0,119170.0,0.20733971]
[1754974709818,2.08220579,119180.0,119170.0,0.22154971]
[1754974710922,1.07881865,119180.0,119170.0,0.22154971]
[1754974711113,2.08220579,119180.0,119170.0,0.22154971]
[1754974711716,1.07881865,119180.0,119170.0,0.22154971]
[1754974712021,2.08220579,119180.0,119170.0,0.22154971]
[1754974715422,2.08220579,119180.0,119170.0,0.20733971]
[1754974715622,2.08220579,119180.0,119170.0,0.17531971]
[1754974724632,2.08220579,119180.0,119170.0,0.20858971]
[1754974726033,2.08220579,119180.0,119170.0,0.12673971]
[1754974738341,2.08220579,119180.0,119170.0,0.01859381]
[1754974738542,2.08220579,119180.0,119170.0,0.10250971]
[1754974739243,2.08220579,119180.0,119170.0,0.12742971]
[1754974740744,2.08220579,119180.0,119170.0,0.20686971]
[1754974740944,2.08220579,119180.0,119170.0,0.22110971]
[1754974743947,2.08220579,119180.0,119170.0,0.12742971]
[1754974747353,2.08220579,119180.0,119170.0,0.10250971]
[1754974747545,2.08220579,119180.0,119170.0,0.12742971]
[1754974747741,2.08220579,119180.0,119170.0,0.01859381]
[1754974747947,2.08220579,119180.0,119170.0,0.04351381]
[1754974750954,2.58389936,119180.0,119170.0,0.04351381]
[1754974751855,2.58389936,119180.0,119170.0,0.12742971]
[1754974752149,0.0839159,119170.0,119160.0,0.4195992]
[1754974752359,0.6174949,119170.0,119160.0,0.4542892]
[1754974753558,0.6194949,119170.0,119160.0,0.4542892]
[1754974753857,2.1194949,119170.0,119160.0,0.4542892]
[1754974754558,2.1224949,119170.0,119160.0,0.4542892]
[1754974754748,2.2617949,119170.0,119160.0,0.4542892]
[1754974754954,2.1224949,119170.0,119160.0,0.4542892]
[1754974755657,2.1168749,119170.0,119160.0,0.4542892]
[1754974755858,0.6224949,119170.0,119160.0,0.4542892]
[1754974756560,0.6224949,119170.0,119160.0,0.95598277]
[1754974759171,0.6224949,119170.0,119160.0,0.4542892]
[1754974767270,0.6224949,119170.0,119160.0,0.3770692]
[1754974767468,0.6224949,119170.0,119160.0,0.4579792]
[1754974770277,0.12080133,119170.0,119160.0,0.4579792]
[1754974770475,0.6224949,119170.0,119160.0,0.4579792]
[1754974773379,0.12080133,119170.0,119160.0,0.4579792]
[1754974773678,0.6224949,119170.0,119160.0,0.4579792]
[1754974777480,1.12418847,119170.0,119160.0,0.2766869]
[1754974779981,1.12418847,119170.0,119160.0,0.3114569]
[1754974780173,1.12418847,119170.0,119160.0,0.3275269]
[1754974780580,1.12418847,119170.0,119160.0,0.2766869]
[1754974783679,1.12418847,119170.0,119160.0,0.1927646]
[1754974788173,0.08393,119150.0,119140.0,0.31783675]
[1754974788380,1.86463714,119150.0,119140.0,0.30764035]
[1754974788688,1.86463714,119150.0,119140.0,0.1229029]
[1754974789282,1.86463714,119150.0,119140.0,0.03897]
[1754974789991,1.86463714,119150.0,119140.0,0.122907]
[1754974790384,1.86463714,119150.0,119140.0,0.03897]
[1754974790580,1.86563714,119150.0,119140.0,0.03897]
[1754974791675,1.86963714,119150.0,119140.0,0.03897]
[1754974792077,1.86963714,119150.0,119140.0,0.122907]
[1754974792280,1.87163714,119150.0,119140.0,0.188227]
[1754974792481,1.87163714,119150.0,119140.0,0.202727]
[1754974793091,1.87163714,119150.0,119140.0,0.106837]
[1754974793284,1.87163714,119150.0,119140.0,0.141157]
[1754974793483,1.87163714,119150.0,119140.0,0.156277]
[1754974797085,1.87163714,119150.0,119140.0,0.121957]
[1754974799092,0.86825,119150.0,119140.0,0.121957]
[1754974799293,1.87163714,119150.0,119140.0,0.121957]
[1754974799489,1.87163714,119150.0,119140.0,0.0229]
[1754974799995,1.87163714,119150.0,119130.0,0.19987162]
[1754974799996,0.083937,119140.0,119130.0,0.19987162]
[1754974800189,1.10192414,119140.0,119130.0,0.24931162]
[1754974800594,1.10192414,119140.0,119130.0,0.03851]
[1754974800893,0.083951,119120.0,119110.0,0.2167313]
[1754974801096,1.86473814,119120.0,119110.0,0.2628513]
[1754974801594,1.86473814,119120.0,119110.0,0.29464909]
[1754974801992,0.861351,119120.0,119110.0,0.79634266]
[1754974802495,1.36304457,119120.0,119110.0,0.79634266]
[1754974803390,0.0985512,119120.0,119110.0,0.79634266]
[1754974803597,1.36308477,119120.0,119110.0,0.79634266]
[1754974803987,0.8613912,119120.0,119110.0,0.29464909]
[1754974804192,1.36408477,119120.0,119110.0,0.79634266]
[1754974808398,1.36408477,119120.0,119110.0,0.24582909]
[1754974808602,1.36408477,119120.0,119110.0,0.79634266]
[1754974808900,1.86577834,119120.0,119110.0,0.28014909]
[1754974809199,1.86577834,119120.0,119110.0,0.29464909]
[1754974809400,1.86577834,119120.0,119110.0,0.79634266]
[1754974809599,1.36408477,119120.0,119110.0,0.79634266]
[1754974809997,0.59562457,119120.0,119110.0,0.79634266]
[1754974810203,0.856811,119120.0,119110.0,0.79634266]
[1754974810501,0.862431,119120.0,119110.0,0.79634266]
[1754974810704,1.36412457,119120.0,119110.0,0.79634266]
[1754974812005,1.36412457,119120.0,119110.0,0.29464909]
[1754974812403,1.36412457,119120.0,119110.0,0.79634266]
[1754974815900,0.60124457,119120.0,119110.0,0.79634266]
[1754974816103,1.36428457,119120.0,119110.0,0.79634266]
[1754974816912,0.77864,119120.0,119110.0,0.79634266]
[1754974817114,1.28033357,119120.0,119110.0,0.79634266]
[1754974817815,1.36428457,119120.0,119110.0,0.79634266]
[1754974820406,1.36428457,119120.0,119110.0,0.81529093]
[1754974820815,1.36428457,119120.0,119110.0,0.31359736]
[1754974821013,1.36428457,119120.0,119110.0,0.81529093]
[1754974823020,0.862591,119120.0,119110.0,0.81529093]
[1754974823221,1.36428457,119120.0,119110.0,0.81529093]
[1754974825626,1.86597814,119120.0,119110.0,0.31359736]
[1754974826736,1.8830271,119120.0,119110.0,0.21135957]
[1754974829027,0.0839581,119110.0,119100.0,0.28479036]
[1754974829231,0.0839652,119100.0,119090.0,0.3707109]
[1754974829422,1.86487234,119100.0,119090.0,0.4336009]
[1754974829622,1.86487234,119100.0,119090.0,0.3845409]
[1754974829826,1.86487234,119100.0,119090.0,0.25907345]
[1754974830731,1.53208475,119100.0,119090.0,0.25907345]
[1754974831726,1.53208475,119100.0,119090.0,0.19626345]
[1754974831932,1.53208475,119100.0,119090.0,0.21085345]
[1754974832435,1.53508475,119100.0,119090.0,0.21085345]
[1754974839430,0.0839792,119080.0,119070.0,0.2519527]
[1754974839730,1.44823955,119080.0,119070.0,0.3737327]
[1754974839937,0.8559992,119080.0,119070.0,0.3737327]
[1754974840242,0.8616192,119080.0,119070.0,1.04433225]
[1754974840537,0.8616192,119080.0,119070.0,0.3737327]
[1754974840747,0.8616192,119080.0,119070.0,0.3747327]
[1754974841532,0.8616192,119080.0,119070.0,0.3757327]
[1754974842431,1.53221875,119080.0,119070.0,0.36966911]
[1754974842637,1.53221875,119080.0,119070.0,0.33527911]
[1754974842839,1.53221875,119080.0,119070.0,0.34651911]
[1754974843137,1.53221875,119080.0,119070.0,0.33527911]
[1754974843335,0.8616192,119080.0,119070.0,0.33527911]
[1754974843638,1.53221875,119080.0,119070.0,0.36966911]
[1754974844037,1.53221875,119080.0,119070.0,0.38433911]
[1754974844236,1.53221875,119080.0,119070.0,0.36966911]
[1754974844431,1.53221875,119080.0,119070.0,0.38433911]
[1754974844637,1.53221875,119080.0,119070.0,0.3757327]
[1754974844836,1.53221875,119080.0,119070.0,0.3610627]
[1754974845136,0.8616192,119080.0,119070.0,0.3610627]
[1754974845333,1.53221875,119080.0,119070.0,0.3610627]
[1754974845735,1.4397783,119080.0,119070.0,0.1104863]
[1754974845931,2.2049383,119080.0,119070.0,0.1104863]
[1754974846136,2.2049383,119080.0,119070.0,0.0859863]
[1754974846737,2.2049383,119080.0,119070.0,0.1104863]
[1754974847433,2.2222334,119080.0,119070.0,0.002]
[1754974849341,2.2222334,119080.0,119070.0,0.0859863]
[1754974849539,1.55163385,119080.0,119070.0,0.1100463]
[1754974854742,1.55163385,119080.0,119070.0,0.02606]
[1754974855339,1.55163385,119080.0,119070.0,0.1100463]
[1754974856044,2.2222334,119080.0,119070.0,0.002]
[1754974856244,2.2222334,119080.0,119070.0,0.02606]
[1754974856742,2.2222334,119080.0,119070.0,0.1100463]
[1754974857144,2.2222334,119080.0,119070.0,0.02606]
[1754974857648,2.2242334,119080.0,119070.0,0.02506]
[1754974858541,2.2252334,119080.0,119070.0,0.02406]
[1754974858733,2.2252334,119080.0,119060.0,0.3010151]
[1754974858734,2.2252334,119080.0,119050.0,0.10244875]
[1754974858934,0.7716143,119060.0,119050.0,0.35444375]
[1754974859146,1.5534143,119060.0,119050.0,0.45018375]
[1754974859337,1.5534143,119060.0,119050.0,0.47424375]
[1754974859533,0.88281475,119060.0,119050.0,0.47424375]
[1754974859743,0.80122135,119060.0,119050.0,1.1448433]
[1754974860137,0.01702135,119060.0,119050.0,1.1458433]
[1754974860345,0.78882135,119060.0,119050.0,1.1458433]
[1754974860539,0.01702135,119060.0,119050.0,1.1458433]
[1754974860940,0.01702135,119060.0,119050.0,1.1468433]
[1754974861140,0.01702135,119060.0,119050.0,0.47624375]
[1754974861341,0.01702135,119060.0,119050.0,1.1468433]
[1754974861742,0.78886135,119060.0,119050.0,1.1468433]
[1754974862943,0.01702135,119060.0,119050.0,1.1468433]
[1754974863951,0.01702135,119060.0,119050.0,0.47624375]
[1754974864142,0.01702135,119060.0,119050.0,1.1468433]
[1754974865049,0.01702135,119060.0,119050.0,1.14689023]
[1754974868054,0.01702135,119060.0,119050.0,0.47629068]
[1754974868254,0.01702135,119060.0,119050.0,1.14689023]
[1754974876666,0.01702135,119060.0,119050.0,0.47629068]
[1754974876863,0.7716144,119060.0,119050.0,0.47629068]
[1754974877164,0.10101485,119060.0,119050.0,0.47629068]
[1754974878763,0.7805944,119060.0,119050.0,0.47629068]
[1754974879062,0.7862144,119060.0,119050.0,0.47629068]
[1754974879763,0.7862144,119060.0,119050.0,0.62625813]
[1754974882170,0.7862144,119060.0,119050.0,0.47629068]
[1754974888669,1.12196701,119060.0,119050.0,0.97946676]
[1754974890070,1.12196701,119060.0,119050.0,0.47629068]
[1754974892067,1.12196701,119060.0,119050.0,0.62625813]
[1754974892670,1.12196701,119060.0,119050.0,0.47629068]
[1754974894170,1.89088701,119060.0,119050.0,0.97946676]
[1754974894359,1.89088701,119060.0,119050.0,0.47629068]
[1754974894561,1.89088701,119060.0,119050.0,0.97946676]
[1754974895072,1.89088701,119060.0,119050.0,0.47629068]
[1754974898075,0.88453485,119060.0,119050.0,0.47629068]
[1754974898268,1.89088701,119060.0,119050.0,0.47629068]
[1754974902175,0.88453485,119060.0,119050.0,0.47629068]
[1754974902570,1.89088701,119060.0,119050.0,0.47629068]
[1754974903578,0.88453485,119060.0,119050.0,0.47629068]
[1754974903775,1.89088701,119060.0,119050.0,0.47629068]
[1754974906182,1.89088701,119060.0,119050.0,0.12855658]
[1754974906376,2.39406309,119060.0,119050.0,0.02049608]
[1754974906770,2.39406309,119060.0,119050.0,0.00204693]
[1754974909084,0.0840076,119040.0,119030.0,0.36293198]
[1754974909289,1.86815976,119040.0,119030.0,0.38554198]
[1754974910383,1.86815976,119040.0,119030.0,0.38754198]
[1754974910583,1.86815976,119040.0,119030.0,0.41263893]
[1754974910779,1.86815976,119040.0,119030.0,0.41663893]
[1754974912584,1.86815976,119040.0,119030.0,0.38330893]
[1754974913782,1.93545142,119040.0,119030.0,0.38330893]
[1754974913974,1.93545142,119040.0,119030.0,0.13127233]
[1754974914181,1.93545142,119040.0,119030.0,0.04726143]
[1754974914878,1.60038062,119040.0,119030.0,0.04726143]
[1754974915488,2.27166198,119040.0,119030.0,0.02465143]
[1754974916292,2.27166198,119040.0,119030.0,0.04726143]
[1754974916883,2.41106198,119040.0,119030.0,0.02465143]
[1754974918087,2.41106198,119040.0,119030.0,0.0062]
[1754974919383,2.57907798,119040.0,119030.0,0.0062]
[1754974919581,3.74075798,119040.0,119030.0,0.0062]
[1754974920181,3.74075798,119040.0,119030.0,0.00263]
[1754974920375,0.0840287,119010.0,119000.0,0.2520974]
[1754974920681,1.77509636,119010.0,119000.0,0.1066458]
[1754974921077,1.77509636,119010.0,118990.0,2.31921566]
[1754974921078,0.0840358,119000.0,118990.0,2.36992556]
[1754974921278,0.75531716,119000.0,118990.0,2.41149375]
[1754974921679,0.75531716,119000.0,118990.0,2.43410375]
[1754974922487,1.52299716,119000.0,118990.0,2.43410375]
[1754974922786,1.52299716,119000.0,118990.0,2.42986556]
[1754974923780,1.52299716,119000.0,118990.0,2.21353356]
[1754974923989,1.52299716,119000.0,118990.0,2.26178356]
[1754974924286,1.52299716,119000.0,118990.0,2.26378356]
[1754974930284,1.52299716,119000.0,118990.0,2.26178356]
[1754974930285,0.8517158,119000.0,118990.0,2.26178356]
[1754974930481,1.52299716,119000.0,118990.0,2.26278356]
[1754974930882,0.8517158,119000.0,118990.0,2.25878356]
[1754974931090,0.8517158,119000.0,118990.0,2.25978356]
[1754974931284,1.52299716,119000.0,118990.0,2.25978356]
[1754974932396,2.19427852,119000.0,118990.0,2.21153356]
[1754974932594,1.52299716,119000.0,118990.0,2.17574456]
[1754974933287,2.21123984,119000.0,118990.0,2.1086468]
[1754974933595,1.53995848,119000.0,118990.0,2.1568968]
[1754974934891,0.86867712,119000.0,118990.0,2.1568968]
[1754974935087,1.53995848,119000.0,118990.0,2.1568968]
[1754974935995,0.87139712,119000.0,118990.0,2.1568968]
[1754974936590,1.54267848,119000.0,118990.0,2.1568968]
[1754974939597,0.77227848,119000.0,118990.0,2.1568968]
[1754974939797,0.87143712,119000.0,118990.0,2.1568968]
[1754974939999,1.54271848,119000.0,118990.0,2.1568968]
[1754974940693,2.21399984,119000.0,118990.0,2.1086529]
[1754974940896,1.61163184,119000.0,118990.0,1.33562868]
[1754974941199,0.0840641,118960.0,118950.0,0.27061373]
[1754974941400,0.2521876,118970.0,118960.0,0.1295241]
[1754974941604,1.69510896,118970.0,118960.0,0.1765441]
[1754974941805,1.69510896,118970.0,118960.0,0.2013841]
[1754974942300,0.92346896,118970.0,118960.0,0.2013841]
[1754974942491,0.856497,118970.0,118960.0,1.04078926]
[1754974942694,1.52777836,118970.0,118960.0,0.11732]
[1754974942913,0.084064,118960.0,118940.0,0.05672]
[1754974943197,0.0840782,118940.0,118930.0,0.2522475]
[1754974943400,0.75535956,118940.0,118930.0,0.2606443]
[1754974943593,0.75535956,118940.0,118930.0,0.1311052]
[1754974943799,1.91759956,118940.0,118930.0,0.07186]
[1754974944110,1.91759956,118940.0,118930.0,0.11732]
[1754974944295,1.91759956,118940.0,118930.0,0.2014052]
[1754974944797,2.0200782,118940.0,118930.0,0.87268656]
[1754974944993,2.0201182,118940.0,118930.0,0.87268656]
[1754974945193,1.2463182,118940.0,118930.0,0.87268656]
[1754974945595,2.0201182,118940.0,118930.0,0.87268656]
[1754974945801,1.2463182,118940.0,118930.0,0.87268656]
[1754974946002,2.0201982,118940.0,118930.0,0.87268656]
[1754974946199,2.0201982,118940.0,118930.0,0.2014052]
[1754974946594,2.69147956,118940.0,118930.0,0.2014052]
[1754974946795,2.0201982,118940.0,118930.0,0.11732]
[1754974946991,2.69147956,118940.0,118930.0,0.02484]
[1754974947493,2.69147956,118940.0,118930.0,0.1089252]
[1754974947494,2.0201982,118940.0,118930.0,0.1089252]
[1754974947699,2.08614754,118940.0,118930.0,0.1089252]
[1754974947894,2.08614754,118940.0,118930.0,0.02484]
[1754974948105,2.7574289,118940.0,118930.0,0.1089252]
[1754974948611,2.08614754,118940.0,118930.0,0.1089252]
[1754974948906,1.31226754,118940.0,118930.0,0.85910656]
[1754974949105,2.08762754,118940.0,118930.0,0.87268656]
[1754974949302,1.22818934,118940.0,118930.0,0.87268656]
[1754974949504,2.00346934,118940.0,118930.0,0.87268656]
[1754974949695,1.22818934,118940.0,118930.0,0.87268656]
[1754974949901,1.51724019,118950.0,118940.0,0.0840781]
[1754974950101,2.29268019,118950.0,118940.0,0.87267946]
[1754974950301,2.29268019,118950.0,118940.0,0.2013981]
[1754974950506,2.29268019,118950.0,118940.0,0.87267946]
[1754974951001,2.29280019,118950.0,118940.0,0.87267946]
[1754974951298,1.51824019,118950.0,118940.0,0.87267946]
[1754974951504,0.01824019,118950.0,118940.0,1.5624344]
[1754974951707,0.18535794,118980.0,118970.0,0.0840569]
[1754974951907,0.91082794,118980.0,118970.0,0.2013769]
[1754974952109,0.89258794,118980.0,118970.0,0.87265826]
[1754974952310,0.89318794,118980.0,118970.0,0.87265826]
[1754974952611,0.91142794,118980.0,118970.0,0.87265826]
[1754974952812,0.91142794,118980.0,118970.0,0.2013769]
[1754974953004,1.5827093,118980.0,118970.0,0.0840569]
[1754974953209,0.0840569,118970.0,118960.0,0.1929579]
[1754974953407,0.77055826,118970.0,118960.0,0.1929579]
[1754974953607,0.1175169,118970.0,118960.0,0.2248379]
[1754974953913,0.1852919,118970.0,118960.0,0.1929579]
[1754974954214,0.85657326,118970.0,118960.0,0.0840581]
[1754974954408,0.85657326,118970.0,118960.0,0.1088981]
[1754974955206,0.85657326,118970.0,118950.0,0.213595]
[1754974955411,0.0840711,118950.0,118940.0,0.18662328]
[1754974955610,0.0840711,118950.0,118930.0,0.21363]
[1754974955611,0.0840782,118940.0,118930.0,0.277095]
[1754974955810,1.56617956,118940.0,118930.0,0.277095]
[1754974956113,1.56617956,118940.0,118930.0,0.19301]
[1754974956609,1.56617956,118940.0,118930.0,0.02484]
[1754974956806,0.0840851,118930.0,118920.0,0.3225763]
[1754974957011,0.78882646,118930.0,118920.0,0.3695963]
[1754974957212,0.1175451,118930.0,118920.0,0.3695963]
[1754974957709,0.77058646,118930.0,118920.0,0.1930242]
[1754974957904,0.78882646,118930.0,118920.0,0.1930242]
[1754974958104,0.80591213,118930.0,118920.0,0.1089321]
[1754974958610,0.13463077,118930.0,118920.0,0.0840921]
[1754974958918,0.13463077,118930.0,118920.0,0.1089321]
[1754974959110,0.13463077,118930.0,118920.0,0.1109321]
[1754974959505,0.13463077,118930.0,118920.0,0.2034121]
[1754974960010,0.13463077,118930.0,118920.0,0.2044121]
[1754974960422,0.11639077,118930.0,118920.0,0.2044121]
[1754974960607,0.89459077,118930.0,118920.0,0.2044121]
[1754974961010,0.91283077,118930.0,118920.0,0.2044121]
[1754974961215,0.91283077,118930.0,118920.0,0.1589521]
[1754974961410,1.70091217,118930.0,118920.0,0.0870921]
[1754974961809,1.70091217,118930.0,118920.0,0.1119321]
[1754974962015,1.70091217,118930.0,118920.0,0.003]
[1754974963518,1.70091217,118930.0,118920.0,0.0870922]
[1754974963713,0.92271217,118930.0,118920.0,0.1119322]
[1754974963920,1.70199217,118930.0,118920.0,0.1119322]
[1754974965219,0.91391077,118930.0,118920.0,0.1119322]
[1754974965419,1.70199217,118930.0,118920.0,0.1119322]
[1754974966215,0.92271217,118930.0,118920.0,0.1119322]
[1754974966420,1.70183217,118930.0,118920.0,0.1119322]
[1754974968118,1.70183217,118930.0,118920.0,0.02784]
[1754974968819,1.70183217,118930.0,118920.0,0.003]
[1754974969217,0.92271217,118930.0,118920.0,0.003]
[1754974969414,1.70143217,118930.0,118920.0,0.003]
[1754974969611,0.0841064,118900.0,118890.0,0.2058542]
[1754974969817,1.6824678,118900.0,118890.0,0.2885142]
[1754974970118,0.8943864,118900.0,118890.0,0.2885142]
[1754974971222,0.8943864,118900.0,118890.0,0.2925142]
[1754974971223,0.94679312,118900.0,118890.0,0.2925142]
[1754974971921,0.94679312,118900.0,118890.0,0.2975142]
[1754974972514,0.94679312,118900.0,118890.0,0.2945142]
[1754974972718,0.96203312,118900.0,118890.0,0.2945142]
[1754974973426,0.96203312,118900.0,118890.0,0.1982042]
[1754974973918,0.96203312,118900.0,118890.0,0.2945142]
[1754974975622,0.96203312,118900.0,118890.0,0.2905142]
[1754974975827,0.96203312,118900.0,118890.0,0.2925142]
[1754974977125,0.18303312,118900.0,118890.0,0.2925142]
[1754974977520,0.96547312,118900.0,118890.0,0.2925142]
[1754974978523,0.16779312,118900.0,118890.0,0.2925142]
[1754974978722,0.08368672,118900.0,118890.0,0.2925142]
[1754974978922,0.93387302,118900.0,118890.0,1.0805956]
[1754974979219,0.06764672,118900.0,118890.0,1.0805956]
[1754974979425,0.8661863,118900.0,118890.0,1.0805956]
[1754974979619,0.8661863,118900.0,118890.0,0.2925142]
[1754974980327,0.8822263,118900.0,118890.0,0.2925142]
[1754974980525,1.75274366,118900.0,118890.0,0.1604208]
[1754974980729,3.87220106,118900.0,118890.0,0.004]
[1754974981024,0.0841347,118860.0,118850.0,0.10296736]
[1754974981225,1.6818761,118860.0,118850.0,0.01885736]
[1754974982022,1.6818761,118860.0,118850.0,0.04283736]
[1754974982227,0.1001747,118860.0,118850.0,0.12697906]
[1754974982420,0.8830547,118860.0,118850.0,0.22328906]
[1754974982617,0.8941147,118860.0,118850.0,0.22328906]
[1754974982817,0.8830147,118860.0,118850.0,1.01137046]
[1754974983031,0.8831747,118860.0,118850.0,0.22328906]
[1754974983221,1.6843161,118860.0,118850.0,0.04283736]
[1754974983422,0.1021747,118860.0,118850.0,0.12697906]
[1754974983730,0.1021747,118860.0,118850.0,1.01137046]
[1754974983939,0.002,118860.0,118850.0,1.01137046]
[1754974984225,0.78796,118860.0,118850.0,1.01137046]
[1754974985032,0.78796,118860.0,118850.0,0.22328906]
[1754974985627,0.78796,118860.0,118850.0,1.01137046]
[1754974985932,0.8881347,118860.0,118850.0,0.22328906]
[1754974986136,1.6762161,118860.0,118850.0,0.22328906]
[1754974986331,1.6762161,118860.0,118850.0,0.17530906]
[1754974986332,1.6872761,118860.0,118850.0,0.17530906]
[1754974986536,1.6872761,118860.0,118850.0,0.12697906]
[1754974986839,0.8991947,118860.0,118850.0,0.22328906]
[1754974987730,0.80752,118860.0,118850.0,0.22328906]
[1754974987930,0.8916546,118860.0,118850.0,0.22328906]
[1754974988236,0.79144,118860.0,118850.0,1.01137046]
[1754974988439,0.79152,118860.0,118850.0,1.01137046]
[1754974988634,0.79152,118860.0,118850.0,0.22328906]
[1754974988839,0.79152,118860.0,118850.0,1.01137046]
[1754974989737,0.0881346,118860.0,118850.0,1.01137046]
[1754974990036,0.79172,118860.0,118850.0,1.01137046]
[1754974990338,0.004,118860.0,118850.0,1.01137046]
[1754974990540,0.79156,118860.0,118850.0,1.01137046]
[1754974990741,0.79148,118860.0,118850.0,1.01137046]
[1754974991129,0.79148,118860.0,118850.0,0.22328906]
[1754974991341,0.79148,118860.0,118850.0,1.01137046]
[1754974992043,0.79148,118860.0,118850.0,0.22328906]
[1754974992235,0.79148,118860.0,118850.0,1.01137046]
[1754974992931,0.8756147,118860.0,118850.0,0.22328906]
[1754974993739,1.6907961,118860.0,118850.0,0.22328906]
[1754974994440,0.8916547,118860.0,118850.0,0.22328906]
[1754974994744,0.9027147,118860.0,118850.0,0.22328906]
[1754974994940,0.9027147,118860.0,118850.0,0.13672906]
[1754974995135,0.0841418,118850.0,118840.0,0.0841468]
[1754974995441,0.0841418,118850.0,118830.0,0.2026378]
[1754974995442,0.0841488,118840.0,118830.0,0.2026378]
[1754974995647,1.6878902,118840.0,118830.0,0.2026378]
[1754974995832,1.6878902,118840.0,118830.0,0.0841524]
[1754974996034,1.6878902,118840.0,118810.0,0.1321497]
[1754974996035,0.084163,118820.0,118810.0,0.2525048]
[1754974996339,0.900303,118820.0,118810.0,0.2764848]
[1754974996642,0.900303,118820.0,118810.0,0.3727948]
[1754974996841,0.889083,118820.0,118810.0,0.3727948]
[1754974997433,0.900143,118820.0,118810.0,0.3727948]
[1754974997641,0.901143,118820.0,118810.0,0.3727948]
[1754974997936,0.890003,118820.0,118810.0,0.3727948]
[1754974998144,0.891003,118820.0,118810.0,0.3727948]
[1754974999145,1.6900644,118820.0,118790.0,0.10259821]
[1754974999346,1.0516711,118810.0,118800.0,0.1926357]
[1754974999641,0.2635897,118810.0,118800.0,0.1084617]
[1754974999841,0.0841843,118790.0,118780.0,0.1400782]
[1754975000147,1.6776457,118790.0,118780.0,0.1084782]
[1754975000341,0.1114643,118790.0,118780.0,0.1084782]
[1754975000542,0.9008243,118790.0,118780.0,0.0841882]
[1754975000742,0.9008243,118790.0,118780.0,0.1400782]
[1754975001041,0.0841913,118780.0,118770.0,0.1400884]
[1754975001246,0.0841984,118770.0,118760.0,0.0841996]
[1754975001541,1.6730598,118770.0,118760.0,0.0841996]
[1754975002043,0.1794486,118780.0,118770.0,0.0841984]
[1754975002237,0.8850913,118780.0,118770.0,0.1548084]
[1754975002843,0.8850913,118780.0,118760.0,0.3610894]
[1754975002844,0.0841984,118770.0,118760.0,0.3610894]
[1754975003044,0.0952584,118770.0,118760.0,0.2768944]
[1754975003242,0.0842126,118750.0,118740.0,0.27114028]
[1754975003449,1.662214,118750.0,118740.0,0.2769401]
[1754975004145,0.1684214,118760.0,118750.0,0.0842126]
[1754975004441,0.08491938,118770.0,118760.0,0.0842055]
[1754975004646,0.95967778,118770.0,118760.0,0.1548155]
[1754975005234,0.08491938,118770.0,118760.0,0.1548155]
[1754975005539,0.01729291,118770.0,118760.0,0.9428969]
[1754975005945,1e-08,118770.0,118760.0,1.1612969]
[1754975006139,1.5,118790.0,118780.0,0.0841913]
[1754975006442,2.29304,118790.0,118780.0,0.9428827]
[1754975006843,0.01705695,118810.0,118800.0,0.0841771]
[1754975007150,0.81085695,118810.0,118800.0,0.9428685]
[1754975007947,0.31891195,118830.0,118820.0,0.084163]
[1754975008245,1.11343195,118830.0,118820.0,0.154773]
[1754975008441,0.06642775,118830.0,118820.0,0.154773]
[1754975008642,0.79488,118830.0,118820.0,0.9428544]
[1754975008948,1.34934219,118840.0,118830.0,0.0841559]
[1754975009145,1.97583839,118840.0,118830.0,0.1400459]